[Event "Titled Tuesday Blitz November 08 Early 2022"]
[White "Seletsky, Grigory"]
[Black "Dahlgren, James Allen"]
[WhiteFideId "14112191"]
[BlackFideId "22256873"]
[WhiteElo "2492"]
[BlackElo "2201"]
[Result "1/2-1/2"]
[Round "08"]
[TimeControl "180+1"]
[Date "2022.11.09"]
[WhiteClock "0:00:16"]
[BlackClock "0:00:08"]

1. b3 {[%clk 0:02:59]}  e6 {[%clk 0:03:00]} 2. Bb2 {[%clk 0:02:59]}  c5 {[%clk 0:02:59]} 3. e4 {[%clk 0:02:58]}  Nf6 {[%clk 0:03:00]} 4. e5 {[%clk 0:02:57]}  Nd5 {[%clk 0:03:00]} 5. c4 {[%clk 0:02:57]}  Nb6 {[%clk 0:03:01]} 6. d4 {[%clk 0:02:56]}  cxd4 {[%clk 0:03:01]} 7. Qxd4 {[%clk 0:02:55]}  Nc6 {[%clk 0:03:00]} 8. Qe4 {[%clk 0:02:56]}  d5 {[%clk 0:02:58]} 9. exd6 {[%clk 0:02:55]}  Qxd6 {[%clk 0:02:57]} 10. Nf3 {[%clk 0:02:54]}  f5 {[%clk 0:02:55]} 11. Qe2 {[%clk 0:02:51]}  Bd7 {[%clk 0:02:49]} 12. Nc3 {[%clk 0:02:50]}  O-O-O {[%clk 0:02:48]} 13. g3 {[%clk 0:02:43]}  e5 {[%clk 0:02:45]} 14. Nb5 {[%clk 0:02:40]}  Qb8 {[%clk 0:02:44]} 15. Nxe5 {[%clk 0:02:35]}  Bb4+ {[%clk 0:02:44]} 16. Nc3 {[%clk 0:02:20]}  Qxe5 {[%clk 0:02:36]} 17. Qxe5 {[%clk 0:02:18]}  Nxe5 {[%clk 0:02:37]} 18. O-O-O {[%clk 0:02:18]}  Bc6 {[%clk 0:02:32]} 19. Bh3 {[%clk 0:02:12]}  Bxh1 {[%clk 0:02:21]} 20. Bxf5+ {[%clk 0:02:08]}  Kb8 {[%clk 0:02:22]} 21. Rxh1 {[%clk 0:02:08]}  Nd3+ {[%clk 0:02:17]} 22. Bxd3 {[%clk 0:02:05]}  Rxd3 {[%clk 0:02:18]} 23. Nb5 {[%clk 0:02:05]}  a6 {[%clk 0:02:01]} 24. Bxg7 {[%clk 0:02:02]}  Re8 {[%clk 0:01:54]} 25. Nd4 {[%clk 0:01:45]}  Bc3 {[%clk 0:01:37]} 26. Kc2 {[%clk 0:01:41]}  Bxd4 {[%clk 0:01:27]} 27. Kxd3 {[%clk 0:01:40]}  Bxg7 {[%clk 0:01:27]} 28. f4 {[%clk 0:01:36]}  Kc7 {[%clk 0:01:26]} 29. g4 {[%clk 0:01:33]}  a5 {[%clk 0:01:26]} 30. h4 {[%clk 0:01:32]}  Kd6 {[%clk 0:01:25]} 31. f5 {[%clk 0:01:29]}  Kc5 {[%clk 0:01:18]} 32. g5 {[%clk 0:01:29]}  Bd4 {[%clk 0:01:17]} 33. f6 {[%clk 0:01:25]}  Re3+ {[%clk 0:01:12]} 34. Kc2 {[%clk 0:01:26]}  Rf3 {[%clk 0:01:09]} 35. Re1 {[%clk 0:01:26]}  a4 {[%clk 0:01:02]} 36. Re7 {[%clk 0:01:22]}  Rc3+ {[%clk 0:00:51]} 37. Kd2 {[%clk 0:01:21]}  axb3 {[%clk 0:00:51]} 38. axb3 {[%clk 0:01:19]}  Rxb3 {[%clk 0:00:50]} 39. f7 {[%clk 0:01:13]}  Nxc4+ {[%clk 0:00:49]} 40. Ke2 {[%clk 0:01:11]}  Rb2+ {[%clk 0:00:43]} 41. Ke1 {[%clk 0:01:10]}  Rf2 {[%clk 0:00:36]} 42. Rxb7 {[%clk 0:01:07]}  Nd6 {[%clk 0:00:35]} 43. f8=Q {[%clk 0:01:04]}  Rxf8 {[%clk 0:00:35]} 44. Rxh7 {[%clk 0:01:04]}  Kc4 {[%clk 0:00:34]} 45. g6 {[%clk 0:01:03]}  Kd3 {[%clk 0:00:33]} 46. Rc7 {[%clk 0:00:57]}  Rh8 {[%clk 0:00:27]} 47. Rh7 {[%clk 0:00:47]}  Rxh7 {[%clk 0:00:26]} 48. gxh7 {[%clk 0:00:47]}  Ne4 {[%clk 0:00:22]} 49. h5 {[%clk 0:00:44]}  Ke3 {[%clk 0:00:21]} 50. Kf1 {[%clk 0:00:42]}  Kf3 {[%clk 0:00:20]} 51. h6 {[%clk 0:00:42]}  Kg4 {[%clk 0:00:17]} 52. Kg2 {[%clk 0:00:41]}  Ng5 {[%clk 0:00:16]} 53. Kh2 {[%clk 0:00:36]}  Nxh7 {[%clk 0:00:16]} 54. Kg2 {[%clk 0:00:36]}  Be3 {[%clk 0:00:16]} 55. Kh2 {[%clk 0:00:34]}  Bxh6 {[%clk 0:00:17]} 56. Kg2 {[%clk 0:00:34]}  Nf6 {[%clk 0:00:17]} 57. Kh2 {[%clk 0:00:32]}  Bf4+ {[%clk 0:00:17]} 58. Kg2 {[%clk 0:00:31]}  Nh5 {[%clk 0:00:18]} 59. Kf2 {[%clk 0:00:30]}  Ng3 {[%clk 0:00:17]} 60. Ke1 {[%clk 0:00:28]}  Kf3 {[%clk 0:00:17]} 61. Kd1 {[%clk 0:00:28]}  Ke3 {[%clk 0:00:16]} 62. Kc2 {[%clk 0:00:28]}  Ne4 {[%clk 0:00:16]} 63. Kb3 {[%clk 0:00:27]}  Be5 {[%clk 0:00:16]} 64. Kc4 {[%clk 0:00:26]}  Bd4 {[%clk 0:00:15]} 65. Kd5 {[%clk 0:00:26]}  Bc3 {[%clk 0:00:13]} 66. Kc6 {[%clk 0:00:26]}  Kd4 {[%clk 0:00:13]} 67. Kb5 {[%clk 0:00:25]}  Nc5 {[%clk 0:00:13]} 68. Kc6 {[%clk 0:00:25]}  Kc4 {[%clk 0:00:12]} 69. Kb6 {[%clk 0:00:24]}  Be5 {[%clk 0:00:11]} 70. Kc6 {[%clk 0:00:24]}  Kd4 {[%clk 0:00:11]} 71. Kb5 {[%clk 0:00:23]}  Kd5 {[%clk 0:00:11]} 72. Kb6 {[%clk 0:00:23]}  Nd7+ {[%clk 0:00:10]} 73. Kb7 {[%clk 0:00:23]}  Kd6 {[%clk 0:00:10]} 74. Ka8 {[%clk 0:00:23]}  Kc7 {[%clk 0:00:10]} 75. Ka7 {[%clk 0:00:22]}  Nb6 {[%clk 0:00:11]} 76. Ka6 {[%clk 0:00:21]}  Kc6 {[%clk 0:00:12]} 77. Ka5 {[%clk 0:00:20]}  Bd6 {[%clk 0:00:10]} 78. Ka6 {[%clk 0:00:19]}  Nd5 {[%clk 0:00:09]} 79. Ka7 {[%clk 0:00:17]}  Nc7 {[%clk 0:00:08]} 80. Kb8 {[%clk 0:00:16]}  Nb5+ {[%clk 0:00:09]} 81. Ka8 {[%clk 0:00:16]}  Kb6 {[%clk 0:00:08]} 1/2-1/2


[Site "https://www.chess.com"]

[Event "Titled Tuesday Blitz November 08 Early 2022"]
[White "Sernecki, Franciszek"]
[Black "Terzi, Alexei"]
[WhiteFideId "1169297"]
[BlackFideId "13505076"]
[WhiteElo "2210"]
[BlackElo "2172"]
[Result "0-1"]
[Round "08"]
[TimeControl "180+1"]
[Date "2022.11.09"]
[WhiteClock "0:00:44"]
[BlackClock "0:00:07"]

1. c4 {[%clk 0:03:00]}  c5 {[%clk 0:02:56]} 2. Nc3 {[%clk 0:03:01]}  Nc6 {[%clk 0:02:54]} 3. g3 {[%clk 0:03:02]}  g6 {[%clk 0:02:54]} 4. Bg2 {[%clk 0:03:03]}  Bg7 {[%clk 0:02:54]} 5. Nf3 {[%clk 0:03:02]}  e5 {[%clk 0:02:54]} 6. e3 {[%clk 0:02:59]}  Nge7 {[%clk 0:02:52]} 7. d4 {[%clk 0:02:56]}  cxd4 {[%clk 0:02:40]} 8. exd4 {[%clk 0:02:57]}  exd4 {[%clk 0:02:40]} 9. Nb5 {[%clk 0:02:56]}  O-O {[%clk 0:02:38]} 10. Nbxd4 {[%clk 0:02:42]}  d5 {[%clk 0:02:33]} 11. Nxc6 {[%clk 0:02:35]}  bxc6 {[%clk 0:02:14]} 12. cxd5 {[%clk 0:02:36]}  Nxd5 {[%clk 0:02:07]} 13. O-O {[%clk 0:02:31]}  Qb6 {[%clk 0:02:02]} 14. Qa4 {[%clk 0:02:22]}  Re8 {[%clk 0:01:51]} 15. Nd2 {[%clk 0:02:16]}  Ba6 {[%clk 0:01:49]} 16. Nc4 {[%clk 0:02:13]}  Qb5 {[%clk 0:01:35]} 17. Qxb5 {[%clk 0:02:06]}  Bxb5 {[%clk 0:01:36]} 18. Bxd5 {[%clk 0:01:44]}  cxd5 {[%clk 0:01:31]} 19. Nd6 {[%clk 0:01:45]}  Bxf1 {[%clk 0:01:20]} 20. Nxe8 {[%clk 0:01:44]}  Bh3 {[%clk 0:00:28]} 21. Nxg7 {[%clk 0:01:39]}  Kxg7 {[%clk 0:00:29]} 22. Be3 {[%clk 0:01:39]}  a6 {[%clk 0:00:24]} 23. Rc1 {[%clk 0:01:35]}  Rd8 {[%clk 0:00:18]} 24. Bd4+ {[%clk 0:01:30]}  Kh6 {[%clk 0:00:17]} 25. f4 {[%clk 0:01:29]}  Re8 {[%clk 0:00:15]} 26. Kf2 {[%clk 0:01:29]}  Bg4 {[%clk 0:00:15]} 27. Re1 {[%clk 0:01:25]}  Rc8 {[%clk 0:00:13]} 28. Bc3 {[%clk 0:01:24]}  f5 {[%clk 0:00:09]} 29. Rc1 {[%clk 0:01:13]}  Rc4 {[%clk 0:00:09]} 30. Bd2 {[%clk 0:01:10]}  Rd4 {[%clk 0:00:09]} 31. Be3 {[%clk 0:01:10]}  Rd3 {[%clk 0:00:08]} 32. Rc2 {[%clk 0:01:03]}  d4 {[%clk 0:00:08]} 33. Bd2 {[%clk 0:01:01]}  Rf3+ {[%clk 0:00:07]} 34. Kg2 {[%clk 0:01:02]}  Rd3 {[%clk 0:00:07]} 35. Ba5 {[%clk 0:00:59]}  Rd1 {[%clk 0:00:06]} 36. h3 {[%clk 0:00:57]}  Bh5 {[%clk 0:00:05]} 37. Bb4 {[%clk 0:00:56]}  Kg7 {[%clk 0:00:05]} 38. Rc7+ {[%clk 0:00:54]}  Kf6 {[%clk 0:00:06]} 39. Rxh7 {[%clk 0:00:49]}  Rb1 {[%clk 0:00:05]} 40. Rd7 {[%clk 0:00:46]}  Rxb2+ {[%clk 0:00:05]} 41. Kf1 {[%clk 0:00:46]}  Rxb4 {[%clk 0:00:05]} 42. Rd6+ {[%clk 0:00:47]}  Ke7 {[%clk 0:00:05]} 43. Rxa6 {[%clk 0:00:48]}  Rb2 {[%clk 0:00:05]} 44. a4 {[%clk 0:00:47]}  d3 {[%clk 0:00:05]} 45. Ra7+ {[%clk 0:00:46]}  Kd6 {[%clk 0:00:05]} 46. g4 {[%clk 0:00:46]}  d2 {[%clk 0:00:05]} 47. Ke2 {[%clk 0:00:45]}  fxg4 {[%clk 0:00:06]} 48. hxg4 {[%clk 0:00:44]}  Bxg4+ {[%clk 0:00:07]} 0-1


[Site "https://www.chess.com"]

[Event "Titled Tuesday Blitz November 08 Early 2022"]
[White "Silvestre, Christian"]
[Black "Joubert, Dantelle"]
[WhiteFideId "30956269"]
[BlackFideId "14310813"]
[WhiteElo "2312"]
[BlackElo "1507"]
[Result "1-0"]
[Round "08"]
[TimeControl "180+1"]
[Date "2022.11.09"]
[WhiteClock "0:01:10"]
[BlackClock "0:01:03"]

1. e4 {[%clk 0:03:00]}  e5 {[%clk 0:02:58]} 2. Nc3 {[%clk 0:03:00]}  Nf6 {[%clk 0:02:57]} 3. Bc4 {[%clk 0:02:59]}  Bc5 {[%clk 0:02:55]} 4. d3 {[%clk 0:02:59]}  Nc6 {[%clk 0:02:54]} 5. Nge2 {[%clk 0:02:54]}  d6 {[%clk 0:02:52]} 6. Be3 {[%clk 0:02:53]}  Bb6 {[%clk 0:02:51]} 7. h3 {[%clk 0:02:52]}  Be6 {[%clk 0:02:46]} 8. Bb3 {[%clk 0:02:48]}  d5 {[%clk 0:02:36]} 9. exd5 {[%clk 0:02:46]}  Nxd5 {[%clk 0:02:36]} 10. Nxd5 {[%clk 0:02:45]}  Bxd5 {[%clk 0:02:36]} 11. O-O {[%clk 0:02:45]}  O-O {[%clk 0:02:30]} 12. Ng3 {[%clk 0:02:44]}  Bxb3 {[%clk 0:02:17]} 13. axb3 {[%clk 0:02:42]}  f5 {[%clk 0:02:16]} 14. Bxb6 {[%clk 0:02:41]}  axb6 {[%clk 0:02:13]} 15. Rxa8 {[%clk 0:02:38]}  Qxa8 {[%clk 0:02:12]} 16. c3 {[%clk 0:02:34]}  Qe8 {[%clk 0:02:02]} 17. b4 {[%clk 0:02:31]}  Qf7 {[%clk 0:01:53]} 18. Re1 {[%clk 0:02:26]}  b5 {[%clk 0:01:48]} 19. Qh5 {[%clk 0:02:08]}  g6 {[%clk 0:01:43]} 20. Qg5 {[%clk 0:02:07]}  Qf6 {[%clk 0:01:38]} 21. Qh6 {[%clk 0:02:06]}  Qg7 {[%clk 0:01:37]} 22. Qg5 {[%clk 0:02:06]}  Qf6 {[%clk 0:01:37]} 23. Qxf6 {[%clk 0:02:05]}  Rxf6 {[%clk 0:01:37]} 24. Kf1 {[%clk 0:02:06]}  Rf8 {[%clk 0:01:35]} 25. Ra1 {[%clk 0:02:04]}  Rd8 {[%clk 0:01:33]} 26. Ke2 {[%clk 0:02:03]}  Kf7 {[%clk 0:01:31]} 27. Nf1 {[%clk 0:02:00]}  g5 {[%clk 0:01:26]} 28. Nd2 {[%clk 0:01:59]}  Kf6 {[%clk 0:01:22]} 29. Nb3 {[%clk 0:01:57]}  b6 {[%clk 0:01:21]} 30. Nd2 {[%clk 0:01:50]}  h5 {[%clk 0:01:19]} 31. Nf1 {[%clk 0:01:45]}  g4 {[%clk 0:01:19]} 32. hxg4 {[%clk 0:01:44]}  hxg4 {[%clk 0:01:19]} 33. Ne3 {[%clk 0:01:44]}  Rh8 {[%clk 0:01:18]} 34. Nd5+ {[%clk 0:01:43]}  Ke6 {[%clk 0:01:13]} 35. Nxc7+ {[%clk 0:01:42]}  Kd6 {[%clk 0:01:13]} 36. Nxb5+ {[%clk 0:01:42]}  Ke6 {[%clk 0:01:12]} 37. Nc7+ {[%clk 0:01:30]}  Kd6 {[%clk 0:01:12]} 38. Nb5+ {[%clk 0:01:24]}  Ke6 {[%clk 0:01:11]} 39. g3 {[%clk 0:01:22]}  f4 {[%clk 0:01:08]} 40. gxf4 {[%clk 0:01:20]}  exf4 {[%clk 0:01:08]} 41. Rg1 {[%clk 0:01:13]}  Kf5 {[%clk 0:01:05]} 42. Nd6+ {[%clk 0:01:11]}  Kg5 {[%clk 0:01:03]} 43. Nf7+ {[%clk 0:01:10]} 1-0


[Site "https://www.chess.com"]

[Event "Titled Tuesday Blitz November 08 Early 2022"]
[White "Stribuk, Artiom"]
[Black "Pranav, V"]
[WhiteFideId "13515659"]
[BlackFideId "25060783"]
[WhiteElo "2371"]
[BlackElo "2430"]
[Result "0-1"]
[Round "08"]
[TimeControl "180+1"]
[Date "2022.11.08"]
[WhiteClock "0:00:29"]
[BlackClock "0:02:05"]

1. d4 {[%clk 0:03:00]}  Nf6 {[%clk 0:02:59]} 2. c4 {[%clk 0:03:01]}  e6 {[%clk 0:02:59]} 3. g3 {[%clk 0:03:01]}  c5 {[%clk 0:02:58]} 4. Nf3 {[%clk 0:02:59]}  cxd4 {[%clk 0:02:57]} 5. Nxd4 {[%clk 0:03:00]}  Be7 {[%clk 0:02:57]} 6. Bg2 {[%clk 0:03:00]}  O-O {[%clk 0:02:58]} 7. Nc3 {[%clk 0:03:00]}  d6 {[%clk 0:02:58]} 8. O-O {[%clk 0:03:00]}  a6 {[%clk 0:02:59]} 9. b3 {[%clk 0:02:56]}  Qc7 {[%clk 0:02:59]} 10. Bb2 {[%clk 0:02:56]}  Bd7 {[%clk 0:02:59]} 11. Rc1 {[%clk 0:02:56]}  Qb6 {[%clk 0:02:54]} 12. e4 {[%clk 0:02:25]}  Nc6 {[%clk 0:02:50]} 13. Nc2 {[%clk 0:02:23]}  Rfd8 {[%clk 0:02:42]} 14. Ne3 {[%clk 0:02:23]}  Rac8 {[%clk 0:02:41]} 15. Qd2 {[%clk 0:02:19]}  Be8 {[%clk 0:02:40]} 16. Rfd1 {[%clk 0:02:18]}  Qa5 {[%clk 0:02:38]} 17. a3 {[%clk 0:02:10]}  b5 {[%clk 0:02:38]} 18. b4 {[%clk 0:02:09]}  Qb6 {[%clk 0:02:38]} 19. h3 {[%clk 0:01:55]}  Ne5 {[%clk 0:02:36]} 20. cxb5 {[%clk 0:01:54]}  axb5 {[%clk 0:02:37]} 21. Ne2 {[%clk 0:01:50]}  Nc4 {[%clk 0:02:31]} 22. Nxc4 {[%clk 0:01:47]}  bxc4 {[%clk 0:02:32]} 23. Nd4 {[%clk 0:01:40]}  h6 {[%clk 0:02:31]} 24. Kh2 {[%clk 0:01:39]}  d5 {[%clk 0:02:21]} 25. e5 {[%clk 0:01:00]}  Ne4 {[%clk 0:02:19]} 26. Bxe4 {[%clk 0:00:58]}  dxe4 {[%clk 0:02:19]} 27. Qe3 {[%clk 0:00:58]}  Bg5 {[%clk 0:02:17]} 28. Qxe4 {[%clk 0:00:54]}  Bxc1 {[%clk 0:02:15]} 29. Rxc1 {[%clk 0:00:54]}  c3 {[%clk 0:02:14]} 30. Rxc3 {[%clk 0:00:47]}  Rxd4 {[%clk 0:02:10]} 31. Qe2 {[%clk 0:00:34]}  Rxc3 {[%clk 0:02:07]} 32. Bxc3 {[%clk 0:00:35]}  Rd3 {[%clk 0:02:06]} 33. Be1 {[%clk 0:00:31]}  Bb5 {[%clk 0:02:05]} 34. Qc2 {[%clk 0:00:29]}  Qc6 {[%clk 0:02:05]} 0-1


[Site "https://www.chess.com"]

[Event "Titled Tuesday Blitz November 08 Early 2022"]
[White "Szente Varga, Fruzsina"]
[Black "Arabidze, Meri"]
[WhiteFideId "712264"]
[BlackFideId "13604040"]
[WhiteElo "1994"]
[BlackElo "2403"]
[Result "0-1"]
[Round "08"]
[TimeControl "180+1"]
[Date "2022.11.09"]
[WhiteClock "0:00:04"]
[BlackClock "0:00:08"]

1. e4 {[%clk 0:03:00]}  c5 {[%clk 0:02:59]} 2. Nf3 {[%clk 0:03:00]}  e6 {[%clk 0:03:00]} 3. b3 {[%clk 0:03:00]}  b6 {[%clk 0:02:58]} 4. Bb2 {[%clk 0:03:00]}  Bb7 {[%clk 0:02:58]} 5. Nc3 {[%clk 0:03:00]}  Nf6 {[%clk 0:02:58]} 6. e5 {[%clk 0:02:59]}  Nd5 {[%clk 0:02:57]} 7. d4 {[%clk 0:02:59]}  Nxc3 {[%clk 0:02:54]} 8. Bxc3 {[%clk 0:02:58]}  Be7 {[%clk 0:02:53]} 9. dxc5 {[%clk 0:02:56]}  Bxc5 {[%clk 0:02:53]} 10. Bd3 {[%clk 0:02:53]}  Nc6 {[%clk 0:02:46]} 11. Qd2 {[%clk 0:02:41]}  Ne7 {[%clk 0:02:45]} 12. O-O {[%clk 0:02:32]}  Bxf3 {[%clk 0:02:37]} 13. gxf3 {[%clk 0:02:31]}  Ng6 {[%clk 0:02:38]} 14. Be4 {[%clk 0:02:28]}  Rc8 {[%clk 0:02:35]} 15. Rad1 {[%clk 0:02:24]}  Rc7 {[%clk 0:02:35]} 16. Kh1 {[%clk 0:02:09]}  O-O {[%clk 0:02:28]} 17. Bb2 {[%clk 0:01:30]}  Qh4 {[%clk 0:02:24]} 18. c4 {[%clk 0:01:25]}  Nf4 {[%clk 0:02:07]} 19. Bd4 {[%clk 0:01:18]}  Bxd4 {[%clk 0:01:24]} 20. Qxd4 {[%clk 0:01:19]}  Rc5 {[%clk 0:01:05]} 21. Rg1 {[%clk 0:01:12]}  Ne2 {[%clk 0:00:55]} 22. Rg4 {[%clk 0:00:47]}  Qh6 {[%clk 0:00:37]} 23. Qd3 {[%clk 0:00:37]}  Rxe5 {[%clk 0:00:14]} 24. Qxe2 {[%clk 0:00:36]}  f5 {[%clk 0:00:15]} 25. Rg2 {[%clk 0:00:33]}  fxe4 {[%clk 0:00:13]} 26. fxe4 {[%clk 0:00:32]}  Rf7 {[%clk 0:00:10]} 27. Rdg1 {[%clk 0:00:25]}  Rh5 {[%clk 0:00:08]} 28. Qg4 {[%clk 0:00:17]}  Rh4 {[%clk 0:00:07]} 29. Qg3 {[%clk 0:00:17]}  Rxe4 {[%clk 0:00:01]} 30. Qb8+ {[%clk 0:00:17]}  Rf8 {[%clk 0:00:02]} 31. Rxg7+ {[%clk 0:00:17]}  Qxg7 {[%clk 0:00:03]} 32. Rxg7+ {[%clk 0:00:18]}  Kxg7 {[%clk 0:00:03]} 33. Qg3+ {[%clk 0:00:16]}  Kh8 {[%clk 0:00:03]} 34. Qc3+ {[%clk 0:00:16]}  e5 {[%clk 0:00:04]} 35. Qd3 {[%clk 0:00:14]}  Rd4 {[%clk 0:00:04]} 36. Qe3 {[%clk 0:00:14]}  d6 {[%clk 0:00:05]} 37. h3 {[%clk 0:00:12]}  Rdf4 {[%clk 0:00:04]} 38. Kg2 {[%clk 0:00:11]}  Rxf2+ {[%clk 0:00:04]} 39. Kg1 {[%clk 0:00:07]}  Rf1+ {[%clk 0:00:04]} 40. Kg2 {[%clk 0:00:08]}  R8f2+ {[%clk 0:00:05]} 41. Kg3 {[%clk 0:00:08]}  Rf3+ {[%clk 0:00:05]} 42. Qxf3 {[%clk 0:00:08]}  Rxf3+ {[%clk 0:00:06]} 43. Kxf3 {[%clk 0:00:09]}  Kg7 {[%clk 0:00:07]} 44. Ke4 {[%clk 0:00:09]}  Kf6 {[%clk 0:00:07]} 45. b4 {[%clk 0:00:09]}  Ke6 {[%clk 0:00:08]} 46. a4 {[%clk 0:00:09]}  Kd7 {[%clk 0:00:08]} 47. c5 {[%clk 0:00:09]}  bxc5 {[%clk 0:00:07]} 48. bxc5 {[%clk 0:00:09]}  dxc5 {[%clk 0:00:08]} 49. Kxe5 {[%clk 0:00:09]}  Kc6 {[%clk 0:00:08]} 50. h4 {[%clk 0:00:09]}  h5 {[%clk 0:00:08]} 51. Kf5 {[%clk 0:00:04]}  c4 {[%clk 0:00:07]} 52. Ke4 {[%clk 0:00:04]}  Kc5 {[%clk 0:00:08]} 0-1


[Site "https://www.chess.com"]

[Event "Titled Tuesday Blitz November 08 Early 2022"]
[White "Tari, Aryan"]
[Black "Ozen, Bahadir"]
[WhiteFideId "1510045"]
[BlackFideId "6337058"]
[WhiteElo "2612"]
[BlackElo "2503"]
[Result "1-0"]
[Round "08"]
[TimeControl "180+1"]
[Date "2022.11.08"]
[WhiteClock "0:00:24"]
[BlackClock "0:00:17"]

1. e4 {[%clk 0:03:00]}  g6 {[%clk 0:03:00]} 2. d4 {[%clk 0:02:59]}  Bg7 {[%clk 0:03:00]} 3. Nf3 {[%clk 0:03:00]}  c6 {[%clk 0:03:00]} 4. Nc3 {[%clk 0:02:59]}  d6 {[%clk 0:03:01]} 5. Bd3 {[%clk 0:02:57]}  Nf6 {[%clk 0:02:59]} 6. O-O {[%clk 0:02:57]}  O-O {[%clk 0:02:59]} 7. h3 {[%clk 0:02:56]}  Nbd7 {[%clk 0:02:56]} 8. Ne2 {[%clk 0:02:56]}  Qc7 {[%clk 0:02:51]} 9. Ng3 {[%clk 0:02:54]}  e5 {[%clk 0:02:47]} 10. c3 {[%clk 0:02:55]}  Re8 {[%clk 0:02:42]} 11. Re1 {[%clk 0:02:44]}  b6 {[%clk 0:02:35]} 12. Be3 {[%clk 0:02:37]}  Bb7 {[%clk 0:02:34]} 13. Qd2 {[%clk 0:02:36]}  c5 {[%clk 0:02:19]} 14. d5 {[%clk 0:02:31]}  c4 {[%clk 0:02:19]} 15. Bc2 {[%clk 0:02:31]}  Nc5 {[%clk 0:02:15]} 16. Bh6 {[%clk 0:02:31]}  Qe7 {[%clk 0:01:51]} 17. b4 {[%clk 0:02:02]}  cxb3 {[%clk 0:01:50]} 18. axb3 {[%clk 0:02:03]}  b5 {[%clk 0:01:48]} 19. b4 {[%clk 0:01:50]}  Ncd7 {[%clk 0:01:48]} 20. Bd3 {[%clk 0:01:50]}  a6 {[%clk 0:01:47]} 21. c4 {[%clk 0:01:45]}  bxc4 {[%clk 0:01:46]} 22. Bxc4 {[%clk 0:01:46]}  Bxh6 {[%clk 0:01:41]} 23. Qxh6 {[%clk 0:01:46]}  Qf8 {[%clk 0:01:41]} 24. Qe3 {[%clk 0:01:45]}  Rec8 {[%clk 0:01:41]} 25. Bf1 {[%clk 0:01:45]}  Qd8 {[%clk 0:01:30]} 26. Ra5 {[%clk 0:01:40]}  Rc2 {[%clk 0:01:10]} 27. Rea1 {[%clk 0:01:36]}  Qc8 {[%clk 0:01:10]} 28. Qb3 {[%clk 0:00:52]}  h5 {[%clk 0:00:50]} 29. b5 {[%clk 0:00:52]}  Rc3 {[%clk 0:00:47]} 30. Qb4 {[%clk 0:00:47]}  Qc5 {[%clk 0:00:46]} 31. Qxc5 {[%clk 0:00:45]}  Nxc5 {[%clk 0:00:46]} 32. bxa6 {[%clk 0:00:45]}  Bc8 {[%clk 0:00:35]} 33. a7 {[%clk 0:00:41]}  Nb3 {[%clk 0:00:33]} 34. R5a3 {[%clk 0:00:36]}  Rxf3 {[%clk 0:00:30]} 35. gxf3 {[%clk 0:00:34]}  Nxa1 {[%clk 0:00:31]} 36. Rxa1 {[%clk 0:00:35]}  Nd7 {[%clk 0:00:24]} 37. Bb5 {[%clk 0:00:34]}  Nc5 {[%clk 0:00:24]} 38. Bc6 {[%clk 0:00:26]}  Bb7 {[%clk 0:00:24]} 39. Ne2 {[%clk 0:00:26]}  Kf8 {[%clk 0:00:24]} 40. Nc3 {[%clk 0:00:24]}  Ke7 {[%clk 0:00:22]} 41. Nb5 {[%clk 0:00:24]}  Kd8 {[%clk 0:00:20]} 42. Nxd6 {[%clk 0:00:23]}  Bxc6 {[%clk 0:00:21]} 43. dxc6 {[%clk 0:00:23]}  Kc7 {[%clk 0:00:21]} 44. Nxf7 {[%clk 0:00:24]}  Nd3 {[%clk 0:00:20]} 45. Rd1 {[%clk 0:00:23]}  Nb2 {[%clk 0:00:20]} 46. Rd7+ {[%clk 0:00:23]}  Kxc6 {[%clk 0:00:21]} 47. Nxe5+ {[%clk 0:00:23]}  Kb6 {[%clk 0:00:21]} 48. Nxg6 {[%clk 0:00:23]}  Nc4 {[%clk 0:00:18]} 49. e5 {[%clk 0:00:22]}  Rxa7 {[%clk 0:00:16]} 50. Rxa7 {[%clk 0:00:22]}  Kxa7 {[%clk 0:00:17]} 51. f4 {[%clk 0:00:22]}  Kb6 {[%clk 0:00:17]} 52. Kg2 {[%clk 0:00:22]}  Kc7 {[%clk 0:00:17]} 53. Kf3 {[%clk 0:00:23]}  Kd7 {[%clk 0:00:18]} 54. f5 {[%clk 0:00:22]}  Ke8 {[%clk 0:00:17]} 55. Ke4 {[%clk 0:00:22]}  Kf7 {[%clk 0:00:17]} 56. Nf4 {[%clk 0:00:23]}  h4 {[%clk 0:00:17]} 57. f6 {[%clk 0:00:23]}  Nb6 {[%clk 0:00:16]} 58. Kf5 {[%clk 0:00:23]}  Nc4 {[%clk 0:00:17]} 59. e6+ {[%clk 0:00:24]}  Ke8 {[%clk 0:00:17]} 60. f7+ {[%clk 0:00:24]} 1-0


[Site "https://www.chess.com"]

[Event "Titled Tuesday Blitz November 08 Early 2022"]
[White "Timofeev, Artyom"]
[Black "Odegov, Artem"]
[WhiteFideId "4140419"]
[BlackFideId "34183644"]
[WhiteElo "2586"]
[BlackElo "2298"]
[Result "1-0"]
[Round "08"]
[TimeControl "180+1"]
[Date "2022.11.09"]
[WhiteClock "0:02:04"]
[BlackClock "0:00:04"]

1. e4 {[%clk 0:03:00]}  e6 {[%clk 0:03:00]} 2. Qe2 {[%clk 0:03:00]}  c5 {[%clk 0:02:58]} 3. Nf3 {[%clk 0:02:59]}  g6 {[%clk 0:02:59]} 4. h4 {[%clk 0:02:58]}  h5 {[%clk 0:02:57]} 5. c3 {[%clk 0:02:57]}  Bg7 {[%clk 0:02:57]} 6. d4 {[%clk 0:02:56]}  cxd4 {[%clk 0:02:55]} 7. cxd4 {[%clk 0:02:56]}  Nc6 {[%clk 0:02:56]} 8. Be3 {[%clk 0:02:52]}  Nf6 {[%clk 0:02:43]} 9. Nc3 {[%clk 0:02:52]}  Ng4 {[%clk 0:02:36]} 10. O-O-O {[%clk 0:02:51]}  Nxe3 {[%clk 0:02:37]} 11. fxe3 {[%clk 0:02:51]}  Qa5 {[%clk 0:02:32]} 12. Kb1 {[%clk 0:02:50]}  d6 {[%clk 0:02:22]} 13. Ng5 {[%clk 0:02:47]}  Bd7 {[%clk 0:02:15]} 14. g4 {[%clk 0:02:41]}  hxg4 {[%clk 0:02:07]} 15. Qxg4 {[%clk 0:02:40]}  Rc8 {[%clk 0:01:57]} 16. Bb5 {[%clk 0:02:30]}  a6 {[%clk 0:01:51]} 17. Bxc6 {[%clk 0:02:15]}  Rxc6 {[%clk 0:01:52]} 18. Rhf1 {[%clk 0:02:08]}  Rxc3 {[%clk 0:00:51]} 19. Nxf7 {[%clk 0:02:07]}  Rxe3 {[%clk 0:00:04]} 20. Qxg6 {[%clk 0:02:04]} 1-0


[Site "https://www.chess.com"]